[Event "Skalica Open 2019"]
[Site "Skalica"]
[Date "2019.08.27"]
[Round "4.2"]
[White "Vykouk, Jan"]
[Black "Pechac, Jergus"]
[Result "1/2-1/2"]
[ECO "C42"]
[WhiteElo "2477"]
[BlackElo "2471"]
[Annotator "ChessBase"]
[PlyCount "58"]
[EventDate "2019.08.25"]
[EventType "swiss"]
[EventCountry "SVK"]
[SourceTitle "playchess.com"]
[Source "ChessBase"]
[SourceQuality "1"]
[TimeControl "40/5400+30:1800+30"]

1. e4 {[%emt 0:00:00]} e5 {[%emt 0:00:00]} 2. Nf3 {[%emt 0:00:00]} Nf6 {[%emt 0:00:01]} 3. Nxe5 {[%emt 0:00:23]} d6 {[%emt 0:00:05]} 4. Nd3 {[%emt 0:07:18]} Nxe4 {[%emt 0:00:08]} 5. Qe2 {[%emt 0:00:04]} Qe7 {[%emt 0:00:10]} 6. Nf4 {[%emt 0:00:13]} c6 {[%emt 0:00:58]} 7. Nc3 {[%emt 0:00:36]} Nf6 {[%emt 0:02:04]} 8. d4 {[%emt 0:02:01]} d5 {[%emt 0:01:46]} 9. Qxe7+ {[%emt 0:02:25]} Bxe7 {[%emt 0:00:06]} 10. Bd3 {[%emt 0:00:06]} Na6 {[%emt 0:03:55]} 11. a3 {[%emt 0:01:21]} Nc7 {[%emt 0:00:11]} 12. Bd2 {[%emt 0:01:53]} Bd7 {[%emt 0:04:37]} 13. f3 {[%emt 0:00:47]} O-O-O {[%emt 0:04:26]} 14. O-O-O {[%emt 0:00:16]} h5 {[%emt 0:01:35]} 15. h4 {[%emt 0:00:34]} Rde8 {[%emt 0:00:47]} 16. Nce2 {[%emt 0:00:33]} g6 {[%emt 0:01:07]} 17. Bb4 {[%emt 0:03:15]} Ng8 {[%emt 0:02:55]} 18. Bxe7 {[%emt 0:04:03]} Nxe7 {[%emt 0:00:18]} 19. Ng3 {[%emt 0:00:09]} Ne6 {[%emt 0:02:46]} 20. Nxe6 {[%emt 0:00:07]} Bxe6 {[%emt 0:00:07]} 21. Rde1 {[%emt 0:00:22]} Kd8 {[%emt 0:00:32]} 22. Kd2 {[%emt 0:00:15]} Nc8 {[%emt 0:00:13]} 23. Re3 {[%emt 0:01:33]} Bd7 {[%emt 0:03:17]} 24. Rhe1 {[%emt 0:00:16]} Rxe3 {[%emt 0:00:30]} 25. Rxe3 {[%emt 0:00:06]} Nd6 {[%emt 0:00:29]} 26. c3 {[%emt 0:00:56]} Rg8 {[%emt 0:00:28]} 27. Re2 {[%emt 0:00:34]} b6 {[%emt 0:02:14]} 28. Ke3 {[%emt 0:00:57]} a5 {[%emt 0:01:09]} 29. Kd2 {[%emt 0:03:25]} Bc8 {[%emt 0:02:11]} 1/2-1/2

[Event "Skalica Open 2019"]
[Site "Skalica"]
[Date "2019.08.27"]
[Round "4.3"]
[White "Maiorov, Nikita"]
[Black "Jablonicky, Martin"]
[Result "1-0"]
[ECO "E62"]
[WhiteElo "2512"]
[BlackElo "2343"]
[Annotator "ChessBase"]
[PlyCount "147"]
[EventDate "2019.08.25"]
[EventType "swiss"]
[EventCountry "SVK"]
[SourceTitle "playchess.com"]
[Source "ChessBase"]
[SourceQuality "1"]
[TimeControl "40/5400+30:1800+30"]

1. d4 {[%emt 0:00:00]} Nf6 {[%emt 0:00:00]} 2. c4 {[%emt 0:00:00]} g6 {[%emt 0:00:00]} 3. g3 {[%emt 0:00:00]} Bg7 {[%emt 0:00:00]} 4. Bg2 {[%emt 0:00:00]} O-O {[%emt 0:00:00]} 5. Nf3 {[%emt 0:00:00]} d6 {[%emt 0:00:00]} 6. O-O {[%emt 0:00:14]} Nc6 {[%emt 0:00:02]} 7. Nc3 {[%emt 0:00:38]} Bf5 {[%emt 0:00:06]} 8. d5 {[%emt 0:09:01]} Na5 {[%emt 0:00:05]} 9. Nd4 {[%emt 0:00:17]} Bd7 {[%emt 0:01:25]} 10. b3 {[%emt 0:00:05]} c5 {[%emt 0:02:18]} 11. dxc6 {[%emt 0:00:05]} Nxc6 {[%emt 0:00:06]} 12. Nc2 {[%emt 0:06:04]} Qa5 {[%emt 0:05:15]} 13. Nb5 {[%emt 0:07:40]} a6 {[%emt 0:07:13]} 14. Bd2 {[%emt 0:00:12]} Qd8 {[%emt 0:00:04]} 15. Nc3 {[%emt 0:00:12]} Rb8 {[%emt 0:00:09]} 16. a4 {[%emt 0:00:55]} Qc8 {[%emt 0:01:06]} 17. Re1 {[%emt 0:03:11]} Bh3 {[%emt 0:00:36]} 18. Bh1 {[%emt 0:00:41]} h5 {[%emt 0:04:14]} 19. Rc1 {[%emt 0:02:29]} h4 {[%emt 0:00:14]} 20. Ne3 {[%emt 0:02:00]} hxg3 {[%emt 0:04:28]} 21. hxg3 {[%emt 0:01:25]} Ng4 {[%emt 0:03:13]} 22. Ncd5 {[%emt 0:11:21]} Bd4 {[%emt 0:05:18]} 23. Nxg4 {[%emt 0:09:01]} Qxg4 {[%emt 0:03:18]} 24. Be3 {[%emt 0:04:21]} Bxe3 {[%emt 0:02:13]} 25. Nxe3 {[%emt 0:00:05]} Qg5 {[%emt 0:03:14]} 26. Qd5 {[%emt 0:03:03]} Ne5 {[%emt 0:00:47]} 27. c5 {[%emt 0:03:11]} Be6 {[%emt 0:02:47]} 28. Qd4 {[%emt 0:04:01]} Rfd8 {[%emt 0:06:25]} 29. Qf4 {[%emt 0:02:19]} Qxf4 {[%emt 0:01:07]} 30. gxf4 {[%emt 0:00:08]} Nc6 {[%emt 0:00:22]} 31. cxd6 {[%emt 0:02:54]} Rxd6 {[%emt 0:00:36]} 32. Nc4 {[%emt 0:00:11]} Rd4 {[%emt 0:05:00]} 33. e3 {[%emt 0:04:00]} Rd3 {[%emt 0:00:17]} 34. Bxc6 {[%emt 0:01:03]} bxc6 {[%emt 0:00:15]} 35. Ne5 {[%emt 0:00:27]} Rdxb3 {[%emt 0:00:33]} 36. Nxc6 {[%emt 0:00:05]} Re8 {[%emt 0:03:17]} 37. Red1 {[%emt 0:03:30]} Kg7 {[%emt 0:03:20]} 38. Nd4 {[%emt 0:03:57]} Rb4 {[%emt 0:00:23]} 39. a5 {[%emt 0:00:06]} Bg4 {[%emt 0:01:45]} 40. f3 {[%emt 0:00:40]} Bh5 {[%emt 0:02:35]} 41. Rc5 {[%emt 0:33:52]} Rb2 {[%emt 0:32:05]} 42. Rf1 {[%emt 0:00:08]} Ra2 {[%emt 0:01:29]} 43. Rf2 {[%emt 0:00:09]} Ra3 {[%emt 0:01:49]} 44. Re2 {[%emt 0:00:57]} Rb8 {[%emt 0:01:26]} 45. Kf2 {[%emt 0:01:00]} Rb1 {[%emt 0:01:09]} 46. Rd2 {[%emt 0:08:56]} Rba1 {[%emt 0:03:51]} 47. Rc7 {[%emt 0:06:41]} Rxa5 {[%emt 0:03:14]} 48. Rxe7 {[%emt 0:00:57]} g5 {[%emt 0:01:57]} 49. f5 {[%emt 0:00:00]} g4 {[%emt 0:00:00]} 50. f4 {[%emt 0:00:00]} R5a2 {[%emt 0:00:00]} 51. Rxa2 {[%emt 0:00:00]} Rxa2+ {[%emt 0:00:00]} 52. Kg3 {[%emt 0:00:00]} a5 {[%emt 0:00:00]} 53. Re5 {[%emt 0:00:00]} Kf6 {[%emt 0:00:00]} 54. Rb5 {[%emt 0:00:00]} a4 {[%emt 0:00:00]} 55. Rb6+ {[%emt 0:00:00]} Kg7 {[%emt 0:00:00]} 56. f6+ {[%emt 0:00:00]} Kh7 {[%emt 0:00:00]} 57. Rb5 {[%emt 0:00:00]} Bg6 {[%emt 0:00:00]} 58. Ra5 {[%emt 0:00:00]} Be4 {[%emt 0:00:00]} 59. f5 {[%emt 0:00:00]} a3 {[%emt 0:00:29]} 60. Kxg4 {[%emt 0:00:00]} Ra1 {[%emt 0:01:56]} 61. Kf4 {[%emt 0:00:00]} Bd3 {[%emt 0:01:29]} 62. Nf3 {[%emt 0:01:47]} Rf1 {[%emt 0:11:31]} 63. e4 {[%emt 0:02:14]} Be2 {[%emt 0:02:26]} 64. Rxa3 {[%emt 0:00:07]} Kh6 {[%emt 0:00:04]} 65. e5 {[%emt 0:00:47]} Bc4 {[%emt 0:01:18]} 66. Ke4 {[%emt 0:01:27]} Rd1 {[%emt 0:02:35]} 67. Nd4 {[%emt 0:02:00]} Rh1 {[%emt 0:00:24]} 68. Nf3 {[%emt 0:00:56]} Rd1 {[%emt 0:00:07]} 69. Ke3 {[%emt 0:01:20]} Kh5 {[%emt 0:02:40]} 70. Kf4 {[%emt 0:00:25]} Rf1 {[%emt 0:01:35]} 71. Rc3 {[%emt 0:00:40]} Bd5 {[%emt 0:01:19]} 72. Rd3 {[%emt 0:00:08]} Bc6 {[%emt 0:00:18]} 73. e6 {[%emt 0:00:16]} Ra1 {[%emt 0:00:03]} 74. exf7 {[%emt 0:01:19]} 1-0

[Event "Skalica Open 2019"]
[Site "Skalica"]
[Date "2019.08.27"]
[Round "4.4"]
[White "Bochnicka, Vladimir"]
[Black "Potapov, Pavel"]
[Result "0-1"]
[ECO "B30"]
[WhiteElo "2193"]
[BlackElo "2496"]
[Annotator "ChessBase"]
[PlyCount "108"]
[EventDate "2019.08.25"]
[EventType "swiss"]
[EventCountry "SVK"]
[SourceTitle "playchess.com"]
[Source "ChessBase"]
[SourceQuality "1"]
[TimeControl "40/5400+30:1800+30"]

1. e4 {[%emt 0:00:00]} c5 {[%emt 0:00:00]} 2. Nf3 {[%emt 0:00:00]} Nc6 {[%emt 0:00:00]} 3. Nc3 {[%emt 0:00:00]} e5 {[%emt 0:00:00]} 4. Bc4 {[%emt 0:00:00]} Be7 {[%emt 0:00:03]} 5. d3 {[%emt 0:00:00]} d6 {[%emt 0:00:15]} 6. O-O {[%emt 0:00:17]} Nf6 {[%emt 0:03:01]} 7. Ng5 {[%emt 0:00:48]} O-O {[%emt 0:00:07]} 8. f4 {[%emt 0:00:05]} exf4 {[%emt 0:10:55]} 9. Bxf4 {[%emt 0:01:36]} Na5 {[%emt 0:01:56]} 10. Qd2 {[%emt 0:13:24]} Nxc4 {[%emt 0:03:36]} 11. dxc4 {[%emt 0:04:36]} Bg4 {[%emt 0:06:18]} 12. b3 {[%emt 0:14:21]} Bh5 {[%emt 0:05:03]} 13. Rae1 {[%emt 0:03:04]} Bg6 {[%emt 0:18:34]} 14. h3 {[%emt 0:20:27]} Re8 {[%emt 0:01:29]} 15. Nf3 {[%emt 0:01:50]} Qd7 {[%emt 0:05:50]} 16. Bg5 {[%emt 0:06:23]} Nh5 {[%emt 0:16:57]} 17. Nh4 {[%emt 0:15:50]} Bxg5 {[%emt 0:02:53]} 18. Qxg5 {[%emt 0:00:06]} Re5 {[%emt 0:00:28]} 19. Qe3 {[%emt 0:03:05]} Rae8 {[%emt 0:01:00]} 20. Nxg6 {[%emt 0:00:14]} hxg6 {[%emt 0:00:51]} 21. Nd5 {[%emt 0:05:04]} R8e6 {[%emt 0:01:49]} 22. b4 {[%emt 0:04:45]} b6 {[%emt 0:01:37]} 23. bxc5 {[%emt 0:00:25]} bxc5 {[%emt 0:00:57]} 24. g4 {[%emt 0:02:53]} Nf6 {[%emt 0:00:33]} 25. Nxf6+ {[%emt 0:00:39]} gxf6 {[%emt 0:00:21]} 26. Rf4 {[%emt 0:00:36]} Qe7 {[%emt 0:02:07]} 27. Qf3 {[%emt 0:00:48]} g5 {[%emt 0:02:56]} 28. Rf5 {[%emt 0:00:11]} Rxe4 {[%emt 0:00:20]} 29. Rxe4 {[%emt 0:01:36]} Rxe4 {[%emt 0:00:02]} 30. Rxf6 {[%emt 0:01:19]} Rxc4 {[%emt 0:01:13]} 31. Qf2 {[%emt 0:00:28]} Rxc2 {[%emt 0:03:36]} 32. Rg6+ {[%emt 0:00:06]} fxg6 {[%emt 0:01:40]} 33. Qxc2 {[%emt 0:00:01]} Qe3+ {[%emt 0:03:15]} 34. Kg2 {[%emt 0:00:13]} Kf7 {[%emt 0:00:06]} 35. Qc4+ {[%emt 0:00:38]} Qe6 {[%emt 0:00:27]} 36. Qa6 {[%emt 0:01:09]} Qe4+ {[%emt 0:01:09]} 37. Kg3 {[%emt 0:00:22]} Qe7 {[%emt 0:00:47]} 38. Qc4+ {[%emt 0:00:44]} Kg7 {[%emt 0:00:28]} 39. Kg2 {[%emt 0:00:15]} Qf7 {[%emt 0:01:02]} 40. Qc3+ {[%emt 0:00:36]} Kh7 {[%emt 0:00:10]} 41. Qa5 {[%emt 0:31:00]} Qe7 {[%emt 0:30:37]} 42. Qb5 {[%emt 0:00:00]} Qc7 {[%emt 0:00:00]} 43. Qe8 {[%emt 0:00:00]} c4 {[%emt 0:00:00]} 44. h4 {[%emt 0:00:00]} gxh4 {[%emt 0:00:00]} 45. Qe4 {[%emt 0:00:00]} c3 {[%emt 0:00:00]} 46. g5 {[%emt 0:00:00]} c2 {[%emt 0:00:00]} 47. Qxh4+ {[%emt 0:00:00]} Kg8 {[%emt 0:00:00]} 48. Qe4 {[%emt 0:00:00]} c1=Q {[%emt 0:00:00]} 49. Qxg6+ {[%emt 0:00:00]} Kf8 {[%emt 0:00:00]} 50. Qh6+ {[%emt 0:00:00]} Ke8 {[%emt 0:00:00]} 51. Qh8+ {[%emt 0:00:00]} Kd7 {[%emt 0:00:00]} 52. Qh7+ {[%emt 0:00:00]} Kc8 {[%emt 0:00:00]} 53. Qf5+ {[%emt 0:00:00]} Qd7 {[%emt 0:00:00]} 54. Qf8+ {[%emt 0:00:00]} Kc7 {[%emt 0:00:00]} 0-1

[Event "Skalica Open 2019"]
[Site "Skalica"]
[Date "2019.08.27"]
[Round "4.5"]
[White "Czebe, Attila"]
[Black "Komliakov, Viktor"]
[Result "1/2-1/2"]
[ECO "D00"]
[WhiteElo "2413"]
[BlackElo "2366"]
[Annotator "NA"]
[PlyCount "64"]
[EventDate "2019.08.25"]
[EventType "swiss"]
[EventCountry "SVK"]
[SourceTitle "playchess.com"]
[Source "ChessBase"]
[SourceQuality "1"]
[TimeControl "40/5400+30:1800+30"]

1. d4 {[%emt 0:00:00]} d5 {[%emt 0:00:38]} 2. Bf4 {[%emt 0:00:00]} Nf6 {[%emt 0:01:46]} 3. e3 {[%emt 0:00:05]} e6 {[%emt 0:01:53]} 4. Bd3 {[%emt 0:03:14]} c5 {[%emt 0:00:49]} 5. Nf3 {[%emt 0:02:13]} Nc6 {[%emt 0:01:00]} 6. O-O {[%emt 0:00:20]} Bd6 {[%emt 0:05:15]} 7. Bxd6 {[%emt 0:10:00]} Qxd6 {[%emt 0:01:38]} 8. Nbd2 {[%emt 0:00:05]} O-O {[%emt 0:36:13]} 9. dxc5 {[%emt 0:02:05]} Qxc5 {[%emt 0:00:10]} 10. e4 {[%emt 0:00:14]} dxe4 {[%emt 0:02:26]} 11. Nxe4 {[%emt 0:00:59]} Nxe4 {[%emt 0:00:46]} 12. Bxe4 {[%emt 0:00:04]} Rd8 {[%emt 0:01:07]} 13. Qe2 {[%emt 0:00:08]} Bd7 {[%emt 0:00:36]} 14. Rfd1 {[%emt 0:00:41]} Be8 {[%emt 0:00:46]} 15. c3 {[%emt 0:01:59]} h6 {[%emt 0:02:04]} 16. Rd3 {[%emt 0:04:40]} Rxd3 {[%emt 0:01:20]} 17. Bxd3 {[%emt 0:00:12]} Rd8 {[%emt 0:01:36]} 18. Rd1 {[%emt 0:00:10]} g6 {[%emt 0:02:24]} 19. h3 {[%emt 0:02:34]} Kg7 {[%emt 0:00:25]} 20. Be4 {[%emt 0:04:33]} Rxd1+ {[%emt 0:06:11]} 21. Qxd1 {[%emt 0:00:03]} f5 {[%emt 0:02:20]} 22. Bc2 {[%emt 0:00:02]} e5 {[%emt 0:00:52]} 23. Bb3 {[%emt 0:00:14]} e4 {[%emt 0:01:04]} 24. Nd4 {[%emt 0:00:09]} Nxd4 {[%emt 0:00:24]} 25. cxd4 {[%emt 0:00:02]} Qd6 {[%emt 0:00:28]} 26. d5 {[%emt 0:00:09]} Qe5 {[%emt 0:04:20]} 27. Qd2 {[%emt 0:00:00]} b6 {[%emt 0:00:44]} 28. d6 {[%emt 0:02:13]} Bd7 {[%emt 0:00:09]} 29. Qb4 {[%emt 0:00:45]} Qc5 {[%emt 0:03:02]} 30. Qd2 {[%emt 0:00:57]} g5 {[%emt 0:00:33]} 31. Qe2 {[%emt 0:00:56]} Kf6 {[%emt 0:04:07]} 32. Qh5 {[%emt 0:06:00]} Qc1+ 1/2-1/2

[Event "Skalica Open 2019"]
[Site "Skalica"]
[Date "2019.08.27"]
[Round "4.6"]
[White "Lanka, Zigurds"]
[Black "Danada, Tomas"]
[Result "1/2-1/2"]
[ECO "B13"]
[WhiteElo "2395"]
[BlackElo "2266"]
[Annotator "NA"]
[PlyCount "43"]
[EventDate "2019.08.25"]
[EventType "swiss"]
[EventCountry "SVK"]
[SourceTitle "playchess.com"]
[Source "ChessBase"]
[SourceQuality "1"]
[TimeControl "40/5400+30:1800+30"]

1. e4 {[%emt 0:00:00]} c6 {[%emt 0:00:00]} 2. d4 {[%emt 0:00:00]} d5 {[%emt 0:00:00]} 3. exd5 {[%emt 0:00:00]} cxd5 {[%emt 0:00:00]} 4. c4 {[%emt 0:00:01]} Nf6 {[%emt 0:00:00]} 5. Nc3 {[%emt 0:00:08]} Nc6 {[%emt 0:00:00]} 6. Bg5 {[%emt 0:00:09]} Ne4 {[%emt 0:00:00]} 7. cxd5 {[%emt 0:00:10]} Nxc3 {[%emt 0:00:05]} 8. bxc3 {[%emt 0:00:10]} Qxd5 {[%emt 0:00:03]} 9. Nf3 {[%emt 0:00:13]} Bg4 {[%emt 0:00:06]} 10. Qb3 {[%emt 0:00:08]} e6 {[%emt 0:00:09]} 11. Bc4 {[%emt 0:09:15]} Qe4+ {[%emt 0:02:14]} 12. Kf1 {[%emt 0:00:46]} Bxf3 {[%emt 0:07:40]} 13. gxf3 {[%emt 0:00:20]} Qxf3 {[%emt 0:00:18]} 14. Rg1 {[%emt 0:00:29]} Bd6 {[%emt 0:06:33]} 15. Re1 {[%emt 0:07:06]} O-O {[%emt 0:11:27]} 16. Re3 {[%emt 0:01:14]} Qh5 {[%emt 0:03:49]} 17. Be2 {[%emt 0:07:05]} Qxh2 {[%emt 0:02:23]} 18. Bd3 {[%emt 0:25:23]} Bf4 {[%emt 0:06:45]} 19. Rg2 {[%emt 0:05:32]} Qh1+ {[%emt 0:00:22]} 20. Rg1 {[%emt 0:00:09]} Qh2 {[%emt 0:00:05]} 21. Rg2 {[%emt 0:02:23]} Qh1+ {[%emt 0:00:06]} 22. Rg1 {[%emt 0:00:06]} 1/2-1/2

[Event "Skalica Open 2019"]
[Site "Skalica"]
[Date "2019.08.27"]
[Round "4.7"]
[White "Aleksandrovskiy, Dmitriy"]
[Black "Manik, Mikulas"]
[Result "1/2-1/2"]
[ECO "B54"]
[WhiteElo "2284"]
[BlackElo "2374"]
[Annotator "NA"]
[PlyCount "45"]
[EventDate "2019.08.25"]
[EventType "swiss"]
[EventCountry "SVK"]
[SourceTitle "playchess.com"]
[Source "ChessBase"]
[SourceQuality "1"]
[TimeControl "40/5400+30:1800+30"]

1. e4 {[%emt 0:00:00]} c5 {[%emt 0:00:00]} 2. Nf3 {[%emt 0:00:00]} d6 {[%emt 0:00:00]} 3. d4 {[%emt 0:00:00]} cxd4 {[%emt 0:00:00]} 4. Nxd4 {[%emt 0:00:00]} Nf6 {[%emt 0:00:00]} 5. f3 {[%emt 0:00:00]} Nc6 {[%emt 0:00:00]} 6. c4 {[%emt 0:01:37]} e6 {[%emt 0:03:22]} 7. Nc3 {[%emt 0:00:38]} Be7 {[%emt 0:00:49]} 8. Be3 {[%emt 0:02:24]} O-O {[%emt 0:01:05]} 9. Be2 {[%emt 0:03:56]} d5 {[%emt 0:02:24]} 10. cxd5 {[%emt 0:08:07]} exd5 {[%emt 0:04:46]} 11. Nxc6 {[%emt 0:00:28]} bxc6 {[%emt 0:00:05]} 12. exd5 {[%emt 0:00:08]} Nxd5 {[%emt 0:00:09]} 13. Nxd5 {[%emt 0:00:10]} cxd5 {[%emt 0:00:12]} 14. O-O {[%emt 0:02:04]} Bf6 {[%emt 0:04:30]} 15. Bd4 {[%emt 0:03:17]} Rb8 {[%emt 0:05:11]} 16. b3 {[%emt 0:10:32]} Re8 {[%emt 0:01:11]} 17. Re1 {[%emt 0:02:58]} Bf5 {[%emt 0:05:57]} 18. Qd2 {[%emt 0:16:50]} Bxd4+ {[%emt 0:10:50]} 19. Qxd4 {[%emt 0:00:07]} Qa5 {[%emt 0:00:11]} 20. Kf1 {[%emt 0:02:33]} h6 {[%emt 0:02:14]} 21. Red1 {[%emt 0:08:19]} Qc7 {[%emt 0:09:45]} 22. Qxd5 {[%emt 0:06:37]} Qxh2 {[%emt 0:00:46]} 23. Qd4 1/2-1/2

[Event "Skalica Open 2019"]
[Site "Skalica"]
[Date "2019.08.27"]
[Round "4.9"]
[White "Kantorik, Marian"]
[Black "Kuznetsov, Mikhail V."]
[Result "0-1"]
[ECO "E32"]
[WhiteElo "2164"]
[BlackElo "2261"]
[Annotator "NA"]
[PlyCount "90"]
[EventDate "2019.08.25"]
[EventType "swiss"]
[EventCountry "SVK"]
[SourceTitle "playchess.com"]
[Source "ChessBase"]
[SourceQuality "1"]
[TimeControl "40/5400+30:1800+30"]

1. d4 {[%emt 0:00:00]} Nf6 {[%emt 0:00:00]} 2. c4 {[%emt 0:00:00]} e6 {[%emt 0:00:00]} 3. Nc3 {[%emt 0:00:32]} Bb4 {[%emt 0:01:38]} 4. Qc2 {[%emt 0:00:28]} O-O {[%emt 0:00:25]} 5. e4 {[%emt 0:00:50]} d6 {[%emt 0:02:13]} 6. Bg5 {[%emt 0:08:07]} e5 {[%emt 0:01:06]} 7. d5 {[%emt 0:01:48]} Nbd7 {[%emt 0:00:48]} 8. Bd3 {[%emt 0:01:15]} h6 {[%emt 0:01:15]} 9. Bh4 {[%emt 0:01:29]} g5 {[%emt 0:07:01]} 10. Bg3 {[%emt 0:00:16]} Nh5 {[%emt 0:00:36]} 11. Nge2 {[%emt 0:00:33]} Nc5 {[%emt 0:02:51]} 12. h4 {[%emt 0:05:56]} Nf4 {[%emt 0:04:28]} 13. Bxf4 {[%emt 0:01:26]} gxf4 {[%emt 0:00:18]} 14. O-O-O {[%emt 0:02:01]} Kh7 {[%emt 0:01:06]} 15. f3 {[%emt 0:05:38]} Rg8 {[%emt 0:02:58]} 16. Rdg1 {[%emt 0:00:16]} Nxd3+ {[%emt 0:01:26]} 17. Qxd3 {[%emt 0:00:08]} Bc5 {[%emt 0:00:04]} 18. g4 {[%emt 0:07:21]} Bxg1 {[%emt 0:00:56]} 19. Nxg1 {[%emt 0:00:06]} a6 {[%emt 0:01:27]} 20. h5 {[%emt 0:00:12]} Bd7 {[%emt 0:01:12]} 21. Kb1 {[%emt 0:01:38]} b5 {[%emt 0:02:58]} 22. cxb5 {[%emt 0:03:40]} axb5 {[%emt 0:00:02]} 23. Nxb5 {[%emt 0:00:11]} Qb8 {[%emt 0:01:11]} 24. Nc3 {[%emt 0:00:12]} Qb6 {[%emt 0:01:11]} 25. Nge2 {[%emt 0:01:12]} Bc8 {[%emt 0:01:54]} 26. Nc1 {[%emt 0:04:26]} Ba6 {[%emt 0:01:43]} 27. Qd2 {[%emt 0:00:48]} Rgb8 {[%emt 0:01:39]} 28. Rh2 {[%emt 0:00:29]} Bc4 {[%emt 0:02:52]} 29. Qe1 {[%emt 0:07:59]} Qd4 {[%emt 0:04:07]} 30. Qd2 {[%emt 0:01:42]} Qc5 {[%emt 0:01:08]} 31. Ka1 {[%emt 0:01:29]} Rb4 {[%emt 0:05:03]} 32. Qf2 {[%emt 0:09:11]} Qe3 {[%emt 0:17:03]} 33. Qxe3 {[%emt 0:05:20]} fxe3 {[%emt 0:00:02]} 34. Kb1 {[%emt 0:00:20]} Kg7 {[%emt 0:03:30]} 35. b3 {[%emt 0:02:34]} Kf6 {[%emt 0:07:38]} 36. Kc2 {[%emt 0:00:35]} Bf1 {[%emt 0:02:33]} 37. Rh1 {[%emt 0:12:11]} e2 {[%emt 0:00:15]} 38. N1xe2 {[%emt 0:00:15]} Bxe2 {[%emt 0:00:12]} 39. Nxe2 {[%emt 0:00:04]} Rxa2+ {[%emt 0:00:14]} 40. Kc3 {[%emt 0:00:04]} Rb5 {[%emt 0:04:35]} 41. g5+ {[%emt 0:36:49]} Kxg5 {[%emt 0:31:52]} 42. Rg1+ {[%emt 0:05:13]} Kxh5 {[%emt 0:01:57]} 43. Ng3+ {[%emt 0:05:31]} Kg5 {[%emt 0:00:35]} 44. Nf5+ {[%emt 0:00:00]} Kf4 {[%emt 0:00:00]} 45. Nxh6 {[%emt 0:00:00]} Kxf3 {[%emt 0:00:00] Kd4} 0-1

[Event "Skalica Open 2019"]
[Site "Skalica"]
[Date "2019.08.27"]
[Round "4.10"]
[White "Matejovic, Juraj"]
[Black "Khmelev, Mikhail"]
[Result "1-0"]
[ECO "C03"]
[WhiteElo "2237"]
[BlackElo "2021"]
[Annotator "NA"]
[PlyCount "97"]
[EventDate "2019.08.25"]
[EventType "swiss"]
[EventCountry "SVK"]
[SourceTitle "playchess.com"]
[Source "ChessBase"]
[SourceQuality "1"]
[TimeControl "40/5400+30:1800+30"]

1. e4 {[%emt 0:00:00]} e6 {[%emt 0:00:00]} 2. d4 {[%emt 0:00:22]} d5 {[%emt 0:00:00]} 3. Nd2 {[%emt 0:00:34]} a5 {[%emt 0:00:46]} 4. Ngf3 {[%emt 0:20:29]} a4 {[%emt 0:00:48]} 5. Bd3 {[%emt 0:09:29]} c5 {[%emt 0:03:28]} 6. dxc5 {[%emt 0:03:35]} Bxc5 {[%emt 0:00:07]} 7. O-O {[%emt 0:01:00]} Nf6 {[%emt 0:01:57]} 8. e5 {[%emt 0:06:28]} Nfd7 {[%emt 0:00:06]} 9. c4 {[%emt 0:00:23]} d4 {[%emt 0:20:55]} 10. Ne4 {[%emt 0:02:07]} Nc6 {[%emt 0:00:41]} 11. Re1 {[%emt 0:11:46]} h6 {[%emt 0:00:35]} 12. Nd6+ {[%emt 0:08:05]} Kf8 {[%emt 0:04:16]} 13. Nb5 {[%emt 0:06:07]} Qb6 {[%emt 0:04:59]} 14. Bf4 {[%emt 0:07:11]} a3 {[%emt 0:02:38]} 15. b3 {[%emt 0:00:27]} Nb4 {[%emt 0:00:18]} 16. Re4 {[%emt 0:02:16]} Ra5 {[%emt 0:08:20]} 17. h4 {[%emt 0:01:16]} Rxb5 {[%emt 0:00:18]} 18. cxb5 {[%emt 0:00:07]} Nd5 {[%emt 0:00:06]} 19. Bd2 {[%emt 0:02:16]} g6 {[%emt 0:03:59]} 20. Rc1 {[%emt 0:01:13]} Kg7 {[%emt 0:00:16]} 21. Qe1 {[%emt 0:01:26]} Qa7 {[%emt 0:00:36]} 22. b4 {[%emt 0:00:34]} Be7 {[%emt 0:00:32]} 23. Rxd4 {[%emt 0:00:50]} N7b6 {[%emt 0:01:29]} 24. Qe4 {[%emt 0:01:10]} Bd7 {[%emt 0:01:22]} 25. h5 {[%emt 0:00:47]} g5 {[%emt 0:00:28]} 26. Qe2 {[%emt 0:04:45]} Qa4 {[%emt 0:00:36]} 27. Rg4 {[%emt 0:00:46]} Kf8 {[%emt 0:01:42]} 28. g3 {[%emt 0:00:59]} Na8 {[%emt 0:01:42]} 29. Rd4 {[%emt 0:02:38]} Nac7 {[%emt 0:00:49]} 30. Rxc7 {[%emt 0:00:41]} Nxc7 {[%emt 0:01:21]} 31. Rxd7 {[%emt 0:00:09]} Nd5 {[%emt 0:00:05]} 32. Rxb7 {[%emt 0:02:38]} Qa8 {[%emt 0:00:03]} 33. Rd7 {[%emt 0:00:21]} Ke8 {[%emt 0:00:04]} 34. Rxd5 {[%emt 0:00:44]} Qxd5 {[%emt 0:00:06]} 35. Bc4 {[%emt 0:00:17]} Qb7 {[%emt 0:00:32]} 36. g4 {[%emt 0:00:19]} Kf8 {[%emt 0:00:06]} 37. Nd4 {[%emt 0:01:35]} Kg7 {[%emt 0:00:49]} 38. Nc6 {[%emt 0:00:11]} Qd7 {[%emt 0:00:30]} 39. Bc3 {[%emt 0:00:51]} Rc8 {[%emt 0:00:17]} 40. Qf3 {[%emt 0:00:39]} Bf8 {[%emt 0:00:06]} 41. Kg2 {[%emt 0:30:33]} Kg8 {[%emt 0:30:07]} 42. Kg3 {[%emt 0:02:16]} Bg7 {[%emt 0:00:19]} 43. Kg2 {[%emt 0:00:00]} Bh8 {[%emt 0:00:00]} 44. Kf1 {[%emt 0:00:00]} Bg7 {[%emt 0:00:00]} 45. Ke2 {[%emt 0:00:00]} Bf8 {[%emt 0:00:00]} 46. Qe4 {[%emt 0:00:00]} Qb7 {[%emt 0:00:00]} 47. Bd3 {[%emt 0:00:00]} Bg7 {[%emt 0:00:00]} 48. Qh7+ {[%emt 0:00:00]} Kf8 {[%emt 0:00:00]} 49. Bd4 {[%emt 0:00:00]} 1-0